lending/lending_fUSD_20240130
["ID","MTS","AMOUNT","RATE_DAILY","PERIOD"]
[313033944,1706656242091,-10810.0,0.000268,2]
[313033945,1706656242101,-1094.96,0.00026907,2]
[313033946,1706656242110,-1300.0,0.00027,3]
[313033947,1706656242120,-368.56,0.00027075,2]
[313033948,1706656242130,-240.46,0.00027145,2]
[313033949,1706656242139,-152.73874418,0.00027171,2]
[313033950,1706656242148,-155.0,0.00027397,2]
[313033951,1706656242158,-5552.52897729,0.00027397,2]
[313033952,1706656242168,-2908.6,0.00027397,2]
[313033953,1706656242177,-23504.52,0.00027397,2]
[313033954,1706656242187,-167.08,0.00027433,2]
[313033955,1706656242197,-23504.52,0.00027556,2]
[313033956,1706656242206,-1000.0,0.00027598,2]
[313033957,1706656242215,-2908.6,0.00027614,2]
[313033958,1706656242225,-23504.52,0.00027714,2]
[313033959,1706656242236,-1098.6511111,0.00027809,2]
[313033960,1706656242247,-2908.6,0.0002783,2]
[313033961,1706656242256,-23504.52,0.00027872,2]
[313033962,1706656242265,-240.46,0.00027986,2]
[313033963,1706656242278,-6080.52015936,0.00028,2]
[313033964,1706656242288,-23504.52,0.0002803,2]
[313033965,1706656242297,-2908.6,0.00028046,2]
[313033966,1706656242307,-23504.52,0.00028189,2]
[313033967,1706656242318,-2908.6,0.00028262,2]
[313033968,1706656242328,-23504.52,0.00028347,2]
[313033969,1706656242338,-535.21760683,0.00028425,2]
[313033970,1706656242348,-2908.6,0.00028479,2]
[313033971,1706656242358,-352.27215379,0.00028504,2]
[313033972,1706656242367,-23504.52,0.00028505,2]
[313033973,1706656242377,-1094.96,0.00028551,2]
[313033974,1706656242387,-23504.52,0.00028664,2]
[313033975,1706656242397,-2908.6,0.00028695,2]
[313033976,1706656242407,-155.0,0.00028767,2]
[313033977,1706656242416,-23504.52,0.00028822,2]
[313033978,1706656242426,-240.46,0.00028827,2]
[313033979,1706656242435,-479.47719543,0.0002888,2]
[313033980,1706656242445,-2908.6,0.00028911,2]
[313033981,1706656242455,-1350.0,0.00029,3]
[313033982,1706656242465,-2908.6,0.00029128,2]
[313033983,1706656242474,-368.56,0.00029339,2]
[313033984,1706656242484,-2908.6,0.00029344,2]
[313033985,1706656242494,-2908.6,0.0002956,2]
[313033986,1706656242504,-2908.6,0.00029777,2]
[313033987,1706656242513,-175.93774684,0.000298,2]
[313033988,1706656242524,-204.0,0.00029865,2]
[313033989,1706656242533,-1741.46968059,0.0002996,2]
[313033990,1706656242543,-529.55966464,0.0002999,2]
[313033991,1706656242553,-2908.6,0.00029993,2]
[313033992,1706656242562,-211.77908202,0.00029999,2]
[313033993,1706656242571,-273.38572775,0.00029999,2]
[313033994,1706656242582,-398.07941293,0.0003,2]
[313033995,1706656242591,-155.0,0.0003,2]
[313033996,1706656242601,-583.60099398,0.0003,2]
[313033997,1706656242611,-2647.79652574,0.0003,4]
[313033998,1706656242621,-1972.82043966,0.0003,2]
[313033999,1706656242631,-9647.59019732,0.0003,2]
[313034000,1706656242640,-246148.87201583,0.0003,2]
[313034001,1706656242650,-704.50735203,0.0003,2]
[313034002,1706656242659,-1702.37481846,0.0003,7]
[313034003,1706656242669,-239.56072119,0.0003,4]
[313034004,1706656242679,-1804.3201016,0.0003,4]
[313034005,1706656242689,-155.0,0.0003,4]
[313034006,1706656242699,-110736.0759719,0.0003,4]
[313034007,1706656242709,-10131.53739643,0.0003,4]
[313034008,1706656242718,-73146.35628528,0.0003,4]
[313034009,1706656242728,-154.82,0.00030137,2]
[313034010,1706656242737,-1983.58,0.00030137,2]
[313034011,1706656242747,-155.0,0.00030137,2]
[313034012,1706656242757,-1094.96,0.00030195,2]
[313034013,1706656242767,-2908.6,0.00030209,2]
[313034014,1706656242776,-1098.6511111,0.00030264,2]
[313034015,1706656242785,-1000.0,0.00030358,2]
[313034016,1706656242795,-2908.6,0.00030425,2]
[313034017,1706656242804,-551.94507304,0.00030459,5]
[313034018,1706656242813,-2908.6,0.00030642,2]
[313034019,1706656242823,-154.82,0.00030782,2]
[313034020,1706656242833,-2908.6,0.00030858,2]
[313034021,1706656242842,-84729.51642502,0.00031,7]
[313034022,1706656242852,-1400.0,0.00031,3]
[313034023,1706656242862,-2908.6,0.00031074,2]
[313034024,1706656242871,-2908.6,0.00031291,2]
[313034025,1706656242880,-154.82,0.00031426,2]
[313034026,1706656242890,-152.73874418,0.00031443,2]
[313034027,1706656242899,-2908.6,0.00031507,2]
[313034028,1706656242909,-155.0,0.00031507,2]
[313034029,1706656242918,-368.56,0.00031603,2]
[313034030,1706656242927,-184.18,0.00031644,2]
[313034031,1706656242937,-180.0,0.00031644,2]
[313034032,1706656242958,-18995.7799055,0.00031797,2]
[313034033,1706656242968,-219084.917732,0.000318,3]
[313034034,1706656242978,-230.86,0.00031973,2]
[313034035,1706656242988,-229.78196609,0.00032,2]
[313034036,1706656242997,-18272.37441804,0.00032,2]
[313034037,1706656243007,-167.08,0.00032006,2]
[313034038,1706656243017,-154.82,0.00032071,2]
[313034039,1706656243027,-205.09429857,0.00032166,3]
[313034040,1706656243037,-2914.0,0.00032179,2]
[313034041,1706656243046,-5550.41,0.00032179,2]
[313034042,1706656243056,-2280.0,0.00032179,2]
[313034043,1706656243066,-4189.0,0.00032179,2]
[313034044,1706656243076,-19763.0,0.00032179,2]
[313034046,1706656243087,-1033.0,0.00032179,2]
[313034048,1706656243096,-1481.87641447,0.000324,2]
[313034050,1706656243105,-2848.07309871,0.000324,2]
[313034051,1706656243115,-575.31,0.00032638,2]
[313034053,1706656243124,-838.0,0.00032676,2]
[313034055,1706656243134,-1860.0,0.00032676,2]
[313034057,1706656243143,-949.0,0.00032676,2]
[313034058,1706656243153,-705.0,0.00032676,2]
[313034060,1706656243162,-1233.0,0.00032676,2]
[313034062,1706656243171,-1261.0,0.00032676,2]
[313034064,1706656243182,-213.673,0.00032676,2]
[313034066,1706656243191,-215.0,0.00032676,2]
[313034067,1706656243200,-1934.0,0.00032676,2]
[313034068,1706656243210,-320.0,0.00032676,2]
[313034069,1706656243220,-860.0,0.00032676,2]
[313034070,1706656243229,-150.0,0.00032676,2]
[313034071,1706656243239,-1145.543,0.00032676,2]
[313034072,1706656243251,-227.967,0.00032676,2]
[313034073,1706656243260,-154.82,0.00032716,2]
[313034075,1706656243270,-1098.6511111,0.00032718,4]
[313034077,1706656243280,-19004.46,0.00032877,2]
[313034079,1706656243290,-155.0,0.00032877,2]
[313034081,1706656243301,-28777.02075206,0.00033,2]
[313034083,1706656243311,-1450.0,0.00033,3]
[313034085,1706656243321,-11021.63,0.00033038,2]
[313034087,1706656243332,-1000.0,0.00033118,2]
[313034088,1706656243342,-1304.17279964,0.00033142,2]
[313034089,1706656243352,-231.18043324,0.00033142,2]
[313034090,1706656243362,-1000.0,0.00033151,120]
[313034091,1706656243371,-154.82,0.0003336,2]
[313034092,1706656243382,-465.54028709,0.00033727,4]
[313034093,1706656243392,-368.56,0.00033867,2]
[313034094,1706656243402,-636.15843273,0.00034,4]
[313034095,1706656243411,-154.82,0.00034005,2]
[313034096,1706656243422,-155.0,0.00034247,2]
[313034097,1706656243432,-551.94507304,0.00034337,6]
[313034098,1706656243442,-154.82,0.00034649,2]
[313034099,1706656243451,-153.89,0.000348,2]
[313034100,1706656243461,-348.21,0.000348,2]
[313034101,1706656243471,-348.21,0.000348,2]
[313034102,1706656243481,-348.21,0.000348,2]
[313034103,1706656243491,-348.21,0.000348,2]
[313034104,1706656243501,-348.21,0.000348,2]
[313034105,1706656243510,-348.21,0.000348,2]
[313034106,1706656243520,-348.21,0.000348,2]
[313034107,1706656243530,-348.21,0.000348,2]
[313034108,1706656243540,-348.21,0.000348,2]
[313034109,1706656243549,-348.21,0.000348,2]
[313034110,1706656243559,-348.21,0.000348,2]
[313034111,1706656243568,-348.21,0.000348,2]
[313034112,1706656243578,-348.21,0.000348,2]
[313034113,1706656243587,-348.21,0.000348,2]
[313034115,1706656243597,-348.21,0.000348,2]
[313034117,1706656243606,-348.21,0.000348,2]
[313034118,1706656243616,-348.21,0.000348,2]
[313034120,1706656243626,-348.21,0.000348,2]
[313034122,1706656243636,-348.21,0.000348,2]
[313034124,1706656243645,-348.21,0.000348,2]
[313034126,1706656243655,-684.50723768,0.000349,2]
[313034128,1706656243665,-684.50723756,0.000349,2]
[313034129,1706656243674,-684.50723756,0.000349,2]
[313034130,1706656243684,-684.50723756,0.000349,2]
[313034131,1706656243694,-684.50723756,0.000349,2]
[313034132,1706656243703,-684.50723756,0.000349,2]
[313034133,1706656243713,-684.50723756,0.000349,2]
[313034135,1706656243722,-684.50723756,0.000349,2]
[313034137,1706656243731,-155.0,0.00035,2]
[313034139,1706656243741,-155.0,0.00035,2]
[313034140,1706656243750,-934.59075636,0.00035,2]
[313034141,1706656243759,-1500.0,0.00035,3]
[313034142,1706656243769,-237.42659612,0.00035,2]
[313034143,1706656243779,-237.42659612,0.00035,2]
[313034144,1706656243788,-237.42659612,0.00035,2]
[313034145,1706656243798,-237.42659612,0.00035,2]
[313034146,1706656243807,-237.42659612,0.00035,2]
[313034147,1706656243817,-237.42659612,0.00035,2]
[313034148,1706656243826,-237.42659612,0.00035,2]
[313034149,1706656243835,-237.42659612,0.00035,2]
[313034150,1706656243847,-237.42659612,0.00035,2]
[313034151,1706656243856,-237.42659612,0.00035,2]
[313034152,1706656243865,-237.42659612,0.00035,2]
[313034153,1706656243874,-237.42659612,0.00035,2]
[313034154,1706656243883,-237.42659612,0.00035,2]
[313034155,1706656243892,-237.42659612,0.00035,2]
[313034157,1706656244080,-237.42659612,0.00035,2]
[313034158,1706656244090,-237.42659612,0.00035,2]
[313034159,1706656244101,-237.42659612,0.00035,2]
[313034160,1706656244110,-237.42659612,0.00035,2]
[313034161,1706656244119,-237.42659612,0.00035,2]
[313034162,1706656244129,-237.42659612,0.00035,2]
[313034163,1706656244138,-237.42659612,0.00035,2]
[313034164,1706656244147,-237.42659612,0.00035,2]
[313034165,1706656244156,-237.42659612,0.00035,2]
[313034166,1706656244166,-237.42659612,0.00035,2]
[313034167,1706656244175,-237.42659612,0.00035,2]
[313034168,1706656244184,-237.42659612,0.00035,2]
[313034169,1706656244194,-237.42659612,0.00035,2]
[313034170,1706656244203,-237.42659612,0.00035,2]
[313034171,1706656244212,-237.42659612,0.00035,2]
[313034172,1706656244222,-237.42659612,0.00035,2]
[313034173,1706656244231,-237.42659612,0.00035,2]
[313034174,1706656244241,-237.42659612,0.00035,2]
[313034175,1706656244253,-237.42659612,0.00035,2]
[313034176,1706656244263,-237.42659612,0.00035,2]
[313034177,1706656244272,-237.42659612,0.00035,2]
[313034178,1706656244281,-237.42659612,0.00035,2]
[313034179,1706656244290,-237.42659612,0.00035,2]
[313034180,1706656244299,-237.42659612,0.00035,2]
[313034181,1706656244308,-237.42659612,0.00035,2]
[313034182,1706656244318,-237.42659612,0.00035,2]
[313034183,1706656244328,-237.42659612,0.00035,2]
[313034184,1706656244338,-237.42659612,0.00035,2]
[313034185,1706656244349,-237.42659612,0.00035,2]
[313034186,1706656244358,-237.42659612,0.00035,2]
[313034187,1706656244367,-237.42659612,0.00035,2]
[313034188,1706656244377,-237.42659612,0.00035,2]
[313034189,1706656244385,-237.42659612,0.00035,2]
[313034190,1706656244394,-237.42659612,0.00035,2]
[313034191,1706656244404,-237.42659612,0.00035,2]
[313034192,1706656244412,-237.42659612,0.00035,2]
[313034193,1706656244421,-237.42659612,0.00035,2]
[313034194,1706656244431,-237.42659612,0.00035,2]
[313034195,1706656244440,-237.42659612,0.00035,2]
[313034196,1706656244449,-237.42659612,0.00035,2]
[313034197,1706656244458,-237.42659612,0.00035,2]
[313034198,1706656244467,-237.42659612,0.00035,2]
[313034199,1706656244476,-237.42659612,0.00035,2]
[313034200,1706656244485,-237.42659612,0.00035,2]
[313034201,1706656244495,-237.42659612,0.00035,2]
[313034202,1706656244504,-237.42659612,0.00035,2]
[313034203,1706656244515,-237.42659612,0.00035,2]
[313034204,1706656244524,-237.42659612,0.00035,2]
[313034205,1706656244534,-237.42659612,0.00035,2]
[313034206,1706656244543,-237.42659612,0.00035,2]
[313034207,1706656244553,-237.42659612,0.00035,2]
[313034208,1706656244562,-237.42659612,0.00035,2]
[313034209,1706656244571,-237.42659612,0.00035,2]
[313034210,1706656244581,-237.42659612,0.00035,2]
[313034211,1706656244590,-237.42659612,0.00035,2]
[313034212,1706656244599,-237.42659612,0.00035,2]
[313034213,1706656244609,-237.42659612,0.00035,2]
[313034214,1706656244618,-237.42659612,0.00035,2]
[313034215,1706656244627,-237.42659612,0.00035,2]
[313034216,1706656244636,-237.42659612,0.00035,2]
[313034217,1706656244645,-237.42659612,0.00035,2]
[313034218,1706656244653,-237.42659612,0.00035,2]
[313034219,1706656244663,-237.42659612,0.00035,2]
[313034220,1706656244672,-237.42659612,0.00035,2]
[313034221,1706656244681,-237.42659612,0.00035,2]
[313034222,1706656244691,-237.42659612,0.00035,2]
[313034223,1706656244701,-237.42659612,0.00035,2]
[313034224,1706656244710,-237.42659612,0.00035,2]
[313034225,1706656244718,-237.42659612,0.00035,2]
[313034226,1706656244727,-237.42659612,0.00035,2]
[313034227,1706656244737,-237.42659612,0.00035,2]
[313034228,1706656244745,-237.42659612,0.00035,2]
[313034229,1706656244754,-237.42659612,0.00035,2]
[313034230,1706656244763,-237.42659612,0.00035,2]
[313034231,1706656244773,-237.42659612,0.00035,2]
[313034232,1706656244782,-237.42659612,0.00035,2]
[313034233,1706656244792,-1098.6511111,0.00035173,7]
[313034234,1706656244800,-2914.0,0.00035179,2]
[313034235,1706656244810,-2280.0,0.00035179,2]
[313034236,1706656244819,-1443.363,0.00035179,2]
[313034237,1706656244828,-19763.0,0.00035179,2]
[313034238,1706656244837,-1033.0,0.00035179,2]
[313034239,1706656244846,-154.82,0.00035294,2]
[313034240,1706656244855,-684.50723756,0.00035532,2]
[313034241,1706656244864,-974.89043936,0.0003561,5]
[313034242,1706656244873,-150.0,0.00035616,2]
[313034243,1706656244882,-211.26345424,0.00035616,7]
[313034244,1706656244891,-2918.98,0.00035616,2]
[313034245,1706656244900,-4125.78,0.00035616,2]
[313034246,1706656244910,-155.0,0.00035617,2]
[313034247,1706656244919,-167.0,0.00035667,2]
[313034248,1706656244928,-838.0,0.00035676,2]
[313034249,1706656244938,-697.788,0.00035676,2]
[313034250,1706656244947,-949.0,0.00035676,2]
[313034251,1706656244956,-196.644,0.00035676,2]
[313034252,1706656244965,-1233.0,0.00035676,2]
[313034253,1706656244974,-1249.0,0.00035676,2]
[313034254,1706656244983,-215.0,0.00035676,2]
[313034255,1706656244993,-320.0,0.00035676,2]
[313034256,1706656245002,-860.0,0.00035676,2]
[313034257,1706656245011,-150.0,0.00035676,2]
[313034258,1706656245020,-1138.0,0.00035676,2]
[313034259,1706656245029,-210.0,0.00035676,2]
[313034260,1706656245038,-152.73874418,0.00035714,2]
[313034261,1706656245048,-151.87707358,0.0003591,5]
[313034262,1706656245057,-154.82,0.00035939,2]
[313034263,1706656245066,-368.56,0.0003613,2]
[313034264,1706656245075,-1319.6993887,0.0003638,2]
[313034265,1706656245084,-167.08,0.00036578,2]
[313034266,1706656245093,-154.82,0.00036583,2]
[313034267,1706656245103,-151.0131,0.00036848,4]
[313034268,1706656245112,-1801.21,0.0003686,2]
[313034269,1706656245121,-276.0,0.00036866,5]
[313034270,1706656245130,-1777.49,0.00036888,5]
[313034271,1706656245139,-23242.79135536,0.000369,7]
[313034272,1706656245148,-4125.78,0.00036934,2]
[313034273,1706656245157,-151.0131,0.00036948,4]
[313034274,1706656245166,-310.85850814,0.00037,4]
[313034275,1706656245175,-1550.0,0.00037,3]
[313034276,1706656245184,-22214.0,0.00037,2]
[313034277,1706656245193,-151.0131,0.00037048,4]
[313034278,1706656245202,-684.50723756,0.00037111,2]
[313034279,1706656245212,-151.0131,0.00037148,4]
[313034280,1706656245221,-154.82,0.00037228,2]
[313034281,1706656245229,-151.0131,0.00037248,4]
[313034282,1706656245241,-151.0131,0.00037348,4]
[313034283,1706656245251,-204.0,0.00037399,16]
[313034284,1706656245259,-151.0131,0.00037448,6]
[313034285,1706656245269,-387.5129487,0.0003752,4]
[313034286,1706656245278,-3000.0,0.0003752,2]
[313034287,1706656245287,-151.0131,0.00037548,6]
[313034288,1706656245296,-1098.6511111,0.00037627,10]
[313034289,1706656245306,-151.0131,0.00037648,6]
[313034290,1706656245316,-150.0,0.00037688,2]
[313034291,1706656245326,-1995.49,0.000377,3]
[313034292,1706656245336,-151.0131,0.00037748,6]
[313034293,1706656245345,-2000.0,0.000378,4]
[313034294,1706656245355,-154.82,0.00037873,2]
[313034295,1706656245364,-155.0,0.00037896,2]
[313034296,1706656245374,-231.81122485,0.00037896,4]
[313034297,1706656245383,-18995.7799055,0.00037897,2]
[313034298,1706656245392,-639.91352208,0.00037898,4]
[313034299,1706656245401,-8986.52599533,0.00037898,4]
[313034300,1706656245412,-265.10987103,0.00037898,4]
[313034301,1706656245421,-167.72726834,0.00037898,4]
[313034302,1706656245430,-1778.47716223,0.00037898,4]
[313034303,1706656245440,-302.16501311,0.00037899,4]
[313034304,1706656245449,-150.0,0.00037899,2]
[313034305,1706656245459,-273.38572775,0.00037899,2]
[313034306,1706656245468,-211.77908202,0.00037899,2]
[313034307,1706656245478,-248.64508676,0.000379,2]
[313034308,1706656245487,-2024.30810131,0.000379,7]
[313034309,1706656245496,-1119.66325182,0.000379,15]
[313034310,1706656245506,-500.0,0.000379,2]
[313034311,1706656245515,-155.0,0.000379,4]
[313034312,1706656245524,-200.0,0.000379,2]
[313034313,1706656245533,-2000.0,0.000379,2]
[313034314,1706656245542,-200.0,0.000379,2]
[313034315,1706656245551,-654929.317971,0.000379,3]
[313034316,1706656245560,-2000.0,0.000379,2]
[313034317,1706656245569,-200.0,0.000379,2]
[313034318,1706656245579,-4000.00496782,0.000379,2]
[313034319,1706656245588,-221.0596248,0.00037974,2]
[313034320,1706656245597,-221.0596248,0.00037974,2]
[313034321,1706656245607,-45226.6930122,0.00037974,2]
[313034322,1706656245616,-49227.6667218,0.00037974,2]
[313034323,1706656245625,-748.2189389,0.00037974,2]
[313034324,1706656245634,-829.1115391,0.00037974,2]
[313034325,1706656245643,-11479.3340409,0.00037974,2]
[313034326,1706656245652,-13094.3455962,0.00037974,2]
[313034327,1706656245661,-467.1890653,0.00037974,2]
[313034328,1706656245671,-532.9172458,0.00037974,2]
[313034329,1706656245680,-132970.4593385,0.00037997,2]
[313034330,1706656245689,-273.38572775,0.00037999,2]
[313034331,1706656245698,-211.77908202,0.00037999,2]
[313034332,1706656245707,-273.38572775,0.00037999,2]
[313034333,1706656245716,-211.77908202,0.00037999,2]
[313034334,1706656245726,-273.38572775,0.00037999,2]
[313034335,1706656245736,-211.77908202,0.00037999,2]
[313034337,1706656245745,-940668.78598146,0.00038,2]
[313034338,1706656245754,-1279580.7372928,0.00038,2]
[313034340,1706656245771,-568.37329392,0.00038,2]
[313034342,1706656245782,-602.71512027,0.00038,2]
[313034357,1706656246385,-237.42659612,0.00035,2]
[313034359,1706656246394,-110.75340388,0.00035,2]
[313034361,1706656246405,-126.67319224,0.00035,2]
[313034363,1706656246414,-237.42659612,0.00035,2]
[313034365,1706656246424,-237.42659612,0.00035,2]
[313034367,1706656246433,-237.42659612,0.00035,2]
[313034369,1706656246441,-237.42659612,0.00035,2]
[313034371,1706656246450,-216.38856942,0.00035,2]
[313034373,1706656246462,-21.0380267,0.00035,2]
[313034375,1706656246471,-228.9619733,0.00035,2]
[313034402,1706656246708,-8.46462282,0.00035,2]
[313034404,1706656246717,-237.42659612,0.00035,2]
[313034405,1706656246728,-237.42659612,0.00035,2]
[313034406,1706656246737,-173.68218494,0.00038,2]
[313034407,1706656246748,-344.14716178,0.00038,2]
[313034408,1706656246759,-723.77245087,0.00038,2]
[313034409,1706656246847,-68994.961395,0.00038,2]
[313034410,1706656246863,-265.5799309,0.00022769,2]
[313034411,1706656246873,-5560.23697681,0.00038,2]
[313034412,1706656246901,-393.64483434,0.00038,2]
[313034413,1706656246916,-7473.48581774,0.00038,2]
[313034414,1706656247878,-379.287537,0.00022769,2]
[313034436,1706657302639,756.85744404,0.000225,2]
[313034461,1706657432306,-4263.64365872,0.00022591,2]
[313034462,1706657432317,-4436.12621469,0.00022591,2]
[313034463,1706657432327,-1320.17508844,0.00022592,2]
[313034464,1706657432339,-6213.41888784,0.00022593,2]
[313034465,1706657432348,-206.91598216,0.000226,2]
[313034466,1706657432357,-157.80424802,0.000227,2]
[313034467,1706657432367,-511.5823003,0.00022768,2]
[313034468,1706657432376,-354.39888379,0.00022768,2]
[313034469,1706657432386,-293.70597766,0.00022768,2]
[313034470,1706657432395,-244.58357291,0.00022768,2]
[313034471,1706657432404,-200.0,0.00025,2]
[313034472,1706657432413,-1250.0,0.00025,3]
[313034473,1706657432422,-243.90246558,0.00025,2]
[313034474,1706657432434,-1660.63079593,0.00025,2]
[313034475,1706657432443,-1587.92031382,0.00025,2]
[313034476,1706657432452,-1101.40861576,0.00027,3]
[313034477,1706657432483,-198.59138424,0.00027,3]
[313034478,1706657432492,-167.7,0.00027397,2]
[313034479,1706657432501,-155.0,0.000275,2]
[313034480,1706657432510,-230.73,0.00027883,2]
[313034481,1706657432521,-1350.0,0.00029,3]
[313034482,1706657432530,-859.69,0.00029075,2]
[313034483,1706657432540,-3.4829188,0.00029243,2]
[313034484,1706657432552,-856.2070812,0.00029243,2]
[313034485,1706657432562,-859.69,0.00029411,2]
[313034486,1706657432573,-859.69,0.00029579,2]
[313034487,1706657432582,-209.49,0.00029612,2]
[313034488,1706657432595,-9462.20883395,0.00029698,2]
[313034489,1706657432604,-859.69,0.00029747,2]
[313034490,1706657432613,-175.93774684,0.000298,2]
[313034491,1706657432625,-159.72,0.00029861,2]
[313034492,1706657432634,-677.3483605,0.00029899,2]
[313034493,1706657432644,-119706.015,0.000299,2]
[313034494,1706657432653,-481.2212,0.000299,2]
[313034495,1706657432662,-859.69,0.00029915,2]
[313034496,1706657432671,-232.19045124,0.00029998,2]
[313034497,1706657432681,-608.29218635,0.00029998,2]
[313034498,1706657432691,-942.59983794,0.00029998,2]
[313034499,1706657432700,-2779.02755521,0.00029999,2]
[313034500,1706657432710,-500.0,0.0003,2]
[313034501,1706657432719,-2647.79652574,0.0003,4]
[313034502,1706657432728,-3004.19778812,0.0003,4]
[313034503,1706657432740,-70142.15849716,0.0003,4]
[313034504,1706657432749,-155.0,0.0003,2]
[313034505,1706657432759,-104.41870323,0.0003,2]
[313034506,1706657432771,-270.96953474,0.0003,2]
[313034507,1706657432780,-592.75446526,0.00030083,2]
[313034508,1706657432800,-266.93553474,0.00030083,2]
[313034509,1706657432809,-230.73,0.00030147,2]
[313034510,1706657432818,-159.72,0.0003025,2]
[313034511,1706657432827,-859.69,0.00030251,2]
[313034512,1706657432838,-198.86,0.00030289,10]
[313034513,1706657432847,-859.69,0.00030419,2]
[313034514,1706657432856,-859.69,0.00030587,2]
[313034515,1706657432865,-159.72,0.00030639,2]
[313034516,1706657432874,-2000.0,0.00030642,2]
[313034517,1706657432883,-1400.0,0.00031,3]
[313034518,1706657432892,-159.72,0.00031028,2]
[313034519,1706657432902,-159.72,0.00031417,2]
[313034520,1706657432911,-8089.02446526,0.00031426,2]
[313034538,1706657435196,-4647.50553474,0.00031426,2]
[313034539,1706657435206,-250.0,0.00031552,2]
[313034540,1706657435215,-180.0,0.00031644,2]
[313034541,1706657435226,-3020.99,0.00031674,2]
[313034542,1706657435235,-2161.69964286,0.00031708,2]
[313034543,1706657435253,-20102.75968368,0.00031708,2]
[313034544,1706657435265,-268.4268511,0.00031708,2]
[313034545,1706657435277,-1367.11382236,0.00031708,2]
[313034546,1706657435286,-155.14566326,0.00032,2]
[313034547,1706657435296,-150.0,0.00032311,2]
[313034548,1706657435305,-230.73,0.00032411,2]
[313034549,1706657435315,-1450.0,0.00033,3]
[313034550,1706657435325,-167.08,0.00033126,2]
[313034551,1706657435337,-155.0,0.00033393,4]
[313034552,1706657435346,-155.92143527,0.00033562,4]
[313034553,1706657435356,-136.89555031,0.00033632,6]
[313034555,1706657438329,-311.46467181,0.00033632,6]
[313034556,1706657438340,-215.89206957,0.00033696,2]
[313034557,1706657438349,-313.0,0.00033732,2]
[313034558,1706657438359,-150.0,0.00033732,2]
[313034559,1706657438368,-1138.0,0.00033732,2]
[313034560,1706657438378,-860.0,0.00033732,2]
[313034561,1706657438388,-210.0,0.00033732,2]
[313034562,1706657438397,-3589.593,0.00033732,2]
[313034563,1706657438406,-1858.96225862,0.00033732,2]
[313034571,1706657438529,-2028.35207815,0.00033732,2]
[313034573,1706657438540,-601.69866323,0.00033732,2]
[313034575,1706657438550,-939.39255115,0.00033732,2]
[313034577,1706657438562,-820.56444885,0.00033732,2]
[313034579,1706657438571,-686.0550387,0.00033732,2]
[313034582,1706657438586,-1251.38715086,0.00033732,2]
[313034586,1706657438619,-17825.55781044,0.00033732,2]
[313034588,1706657438629,-1890.291,0.00033732,2]
[313034590,1706657438639,-2292.207,0.00033732,2]
[313034592,1706657438649,-2924.705,0.00033732,2]
[313034595,1706657438659,-838.0,0.00033732,2]
[313034597,1706657438668,-949.338,0.00033732,2]
[313034599,1706657438678,-1034.918,0.00033732,2]
[313034601,1706657438687,-1233.0,0.00033732,2]
[313034603,1706657438697,-1260.212,0.00033732,2]
[313034605,1706657438707,-636.15843273,0.00034,4]
[313034607,1706657438718,-1200.8,0.00034129,2]
[313034609,1706657438727,-203.76,0.00034296,2]
[313034611,1706657438737,-230.73,0.00034675,2]
[313034613,1706657438747,-154.82,0.0003489,2]
[313034615,1706657438757,-500.0,0.00035,7]
[313034617,1706657438767,-1500.0,0.00035,3]
[313034619,1706657438777,-1000.0,0.00035335,2]
[313034621,1706657438787,-270.7643,0.0003534,2]